[Event "Asian Zonal 3.3 Women 2019"]
[Site "Ulaanbaatar"]
[Date "2019.04.13"]
[Round "7.15"]
[White "Tsogzolmaa, Nanjid"]
[Black "Enkhsaran, Batsaikhan"]
[Result "0-1"]
[ECO "A00"]
[WhiteElo "1815"]
[BlackElo "1792"]
[Annotator "NA RC"]
[PlyCount "128"]
[EventDate "2019.04.07"]
[EventType "swiss"]
[EventRounds "9"]
[EventCountry "MGL"]
[SourceTitle "playchess.com"]
[Source "ChessBase"]
[SourceQuality "1"]
[TimeControl "40/5400+30:1800+30"]

1. d4 d5 2. Nf3 Nf6 3. Bf4 c5 4. e3 Nc6 5. c3 e6 6. Nbd2 Bd6 7. Bg3 O-O 8. Bd3 b6 9. e4 Be7 10. e5 Nh5 11. a3 g6 12. Nf1 Bb7 13. Qe2 Re8 14. Ne3 f5 15. exf6 Bxf6 16. Bb5 cxd4 17. cxd4 a6 18. Bxc6 Bxc6 19. Ng4 Bg7 20. a4 Qe7 21. Bh4 Qb4+ 22. Qd2 Bf8 23. O-O Qxd2 24. Nxd2 Rac8 25. Bg5 b5 26. axb5 Bxb5 27. Rfc1 Bd6 28. g3 Be2 29. f3 Bb5 30. Nb3 Kf8 31. Bd2 Kf7 32. Kf2 Nf6 33. Ne5+ Bxe5 34. dxe5 Nd7 35. f4 Bc4 36. Na5 Nc5 37. Kg1 Bb5 38. Bc3 Red8 39. Rd1 Rd7 40. Bd4 Nd3 41. Ra3 Nc1 42. Kh1 Ne2 43. b4 Nxd4 44. Rxd4 Rc1+ 45. Kg2 Rdc7 46. Ra2 Rb1 47. Kh3 Kg7 48. Kh4 Kh6 49. Rf2 Kg7 50. Rfd2 Ba4 51. Ra2 Bb5 52. Rad2 Ba4 53. g4 Rc3 54. f5 Rf1 55. f6+ Kf7 56. Nb7 h6 57. Nd6+ Kg8 58. R2d3 Rf3 59. Rxc3 Rxc3 60. g5 h5 61. Rd2 Rf3 62. Rd4 Bc2 63. Rxd5 exd5 64. e6 Bf5 0-1

[Event "Asian Zonal 3.3 Women 2019"]
[Site "Ulaanbaatar"]
[Date "2019.04.13"]
[Round "7.16"]
[White "Khongorzul, Davaakhuu"]
[Black "Munkhzul, Davaakhuu"]
[Result "1-0"]
[ECO "A00"]
[WhiteElo "1568"]
[BlackElo "1793"]
[Annotator "NA RC"]
[PlyCount "115"]
[EventDate "2019.04.07"]
[EventType "swiss"]
[EventRounds "9"]
[EventCountry "MGL"]
[SourceTitle "playchess.com"]
[Source "ChessBase"]
[SourceQuality "1"]
[TimeControl "40/5400+30:1800+30"]

1. e4 c5 2. Nf3 e6 3. c4 Nc6 4. g3 g6 5. d4 cxd4 6. Nxd4 Nf6 7. Bg2 Bg7 8. O-O O-O 9. Be3 e5 10. Nb5 b6 11. N1c3 Ne7 12. f4 Ne8 13. f5 Bb7 14. Bh3 d6 15. g4 a6 16. Na3 gxf5 17. exf5 Kh8 18. g5 Rg8 19. Bg4 d5 20. f6 d4 21. fxg7+ Rxg7 22. Qe1 dxe3 23. Rd1 Qc7 24. Qxe3 f5 25. Bxf5 Nd6 26. Bg4 Nxc4 27. Nxc4 Qxc4 28. h3 Rag8 29. Qxe5 Nc6 30. Qd5 Qb4 31. Qf5 Bc8 32. Qf6 Bxg4 33. hxg4 Qxg4+ 34. Kf2 Qh4+ 35. Ke2 Re8+ 36. Kd2 Qxg5+ 37. Qxg5 Rxg5 38. Rf6 Ne5 39. Kc2 Nc4 40. Kb3 Na5+ 41. Kc2 Rg2+ 42. Rd2 Rg1 43. b3 Rb8 44. Nd5 Rg6 45. Rdf2 Rc8+ 46. Kb2 Rc6 47. Rf8+ Kg7 48. R8f7+ Kh8 49. Ne7 Rce6 50. Nxg6+ Rxg6 51. Rc7 Kg8 52. Rfc2 b5 53. Ra7 Nc6 54. Rxa6 Nb4 55. Rxg6+ hxg6 56. Rd2 Kf7 57. Rd6 g5 58. a3 1-0

[Event "Asian Zonal 3.3 Women 2019"]
[Site "Ulaanbaatar"]
[Date "2019.04.13"]
[Round "7.17"]
[White "Lkhagvajed, Gantulga"]
[Black "Unurzul, Davaakhuu"]
[Result "1/2-1/2"]
[ECO "A00"]
[WhiteElo "1344"]
[BlackElo "1378"]
[Annotator "NA RC"]
[PlyCount "133"]
[EventDate "2019.04.07"]
[EventType "swiss"]
[EventRounds "9"]
[EventCountry "MGL"]
[SourceTitle "playchess.com"]
[Source "ChessBase"]
[SourceQuality "1"]
[TimeControl "40/5400+30:1800+30"]

1. e4 e5 2. Nf3 Nc6 3. Bc4 Bc5 4. c3 Nf6 5. d3 d6 6. O-O Be6 7. Bb3 d5 8. Qc2 O-O 9. Bg5 Be7 10. Nbd2 h6 11. Bh4 dxe4 12. dxe4 Bg4 13. h3 Bh5 14. Rad1 Nd7 15. Bg3 Bd6 16. Rc1 a6 17. Nh4 Na5 18. Nf5 Nc5 19. f3 Bg6 20. Rfe1 Bxf5 21. exf5 Nd3 22. Bh4 Nxe1 23. Bxe1 Nxb3 24. Nxb3 Qe7 25. Bf2 Rfe8 26. Qe4 b6 27. Kh2 Qg5 28. Be3 Qe7 29. Bf2 a5 30. a4 Qd8 31. Rd1 Qe7 32. Kh1 Rad8 33. Kh2 Kh8 34. Rd5 c6 35. Rd2 Qc7 36. Bh4 f6 37. Bf2 b5 38. axb5 cxb5 39. Rd5 a4 40. Nd2 a3 41. bxa3 Qxc3 42. Rd3 Qa5 43. Nb3 Qc7 44. Be1 Rc8 45. Bb4 Bxb4 46. axb4 Qc4 47. Nc5 Qxe4 48. fxe4 Red8 49. Rb3 Rd4 50. h4 Rc4 51. Kg3 Rd8 52. Kg4 Rdd4 53. Kh5 Rxb4 54. Ra3 Rd8 55. Kg6 Rc4 56. Ne6 Rg8 57. g4 Rxe4 58. g5 Rg4 59. Rd3 b4 60. Nd8 Rf8 61. Rd7 fxg5 62. Nf7+ Kg8 63. Nxh6+ gxh6 64. Rg7+ Kh8 65. Rh7+ Kg8 66. Rg7+ Kh8 67. Rh7+ 1/2-1/2

[Event "Asian Zonal 3.3 Women 2019"]
[Site "Ulaanbaatar"]
[Date "2019.04.13"]
[Round "7.18"]
[White "Ng, Sau Wai"]
[Black "Anujin, Bat-Amgalan"]
[Result "1/2-1/2"]
[ECO "A00"]
[WhiteElo "1154"]
[BlackElo "1407"]
[Annotator "NA RC"]
[PlyCount "105"]
[EventDate "2019.04.07"]
[EventType "swiss"]
[EventRounds "9"]
[EventCountry "MGL"]
[SourceTitle "playchess.com"]
[Source "ChessBase"]
[SourceQuality "1"]
[TimeControl "40/5400+30:1800+30"]

1. c4 Nf6 2. Nc3 e6 3. Nf3 Bb4 4. g3 Bxc3 5. bxc3 Nc6 6. Bg2 O-O 7. O-O Rb8 8. Rb1 d5 9. cxd5 exd5 10. Qc2 h6 11. Bb2 Be6 12. a3 Qd7 13. Nd4 Nxd4 14. cxd4 c6 15. d3 Bh3 16. Rbd1 Rfe8 17. Bc1 Bxg2 18. Kxg2 Re7 19. f3 Rbe8 20. Rfe1 Nh7 21. e4 Nf8 22. e5 f6 23. f4 Ng6 24. Qf2 Qg4 25. Kh1 f5 26. Rg1 Nf8 27. Qg2 Ne6 28. Be3 h5 29. h3 Qg6 30. Qh2 Rf7 31. Rdf1 Kf8 32. Qe2 Ke7 33. a4 Kd8 34. h4 Rc7 35. a5 Kd7 36. Rb1 Rec8 37. Kh2 Qf7 38. Rgc1 Kd8 39. Qd1 g6 40. Kg1 Qd7 41. Kf1 c5 42. dxc5 d4 43. Bf2 Rxc5 44. Rxc5 Rxc5 45. Qf3 Rb5 46. Rxb5 Qxb5 47. Be1 Kd7 48. Qd1 Qc6 49. Kf2 Qb5 50. Qd2 Nc5 51. Ke2 Qb3 52. Bf2 Ne6 53. Be1 1/2-1/2

[Event "Asian Zonal 3.3 Women 2019"]
[Site "Ulaanbaatar"]
[Date "2019.04.13"]
[Round "7.19"]
[White "Enkhnasan, Namjiljav"]
[Black "Khanyl, Chuluuntuya"]
[Result "0-1"]
[ECO "A00"]
[WhiteElo "1610"]
[BlackElo "1375"]
[Annotator "NA RC"]
[PlyCount "118"]
[EventDate "2019.04.07"]
[EventType "swiss"]
[EventRounds "9"]
[EventCountry "MGL"]
[SourceTitle "playchess.com"]
[Source "ChessBase"]
[SourceQuality "1"]
[TimeControl "40/5400+30:1800+30"]

1. d4 d5 2. c4 c6 3. Bf4 Nf6 4. e3 e6 5. Nf3 Bd6 6. Ne5 Nbd7 7. Nxc6 Qc7 8. Bxd6 Qxd6 9. Na5 b6 10. Nb3 Bb7 11. N1d2 O-O 12. Rc1 Rac8 13. f3 e5 14. Be2 Rfe8 15. O-O exd4 16. Nxd4 Qe7 17. Nc2 Ne5 18. cxd5 Bxd5 19. b3 Nc6 20. e4 Be6 21. Qe1 Nb4 22. Nxb4 Qxb4 23. Nc4 Qc5+ 24. Kh1 Qe7 25. Rd1 Red8 26. Rxd8+ Rxd8 27. Ne5 Qd6 28. Nc4 Qc5 29. h3 Nd7 30. Qh4 Rc8 31. Rd1 h6 32. f4 Nf6 33. f5 Bd7 34. e5 Nd5 35. Qd4 Qxd4 36. Rxd4 Bc6 37. Nd6 Rc7 38. Bf3 Ne3 39. Bxc6 Rxc6 40. Kg1 Rc2 41. Rd3 Rxg2+ 42. Kh1 Re2 43. e6 fxe6 44. fxe6 Re1+ 45. Kh2 Re2+ 46. Kg1 Nc2 47. Rg3 Rxe6 48. Nf5 g5 49. h4 Rf6 50. Ne7+ Kf7 51. hxg5 hxg5 52. Nc8 a6 53. Rxg5 Rc6 54. Na7 Rc7 55. Rh5 Kg6 56. Rh2 Nd4 57. Rg2+ Kf5 58. Rf2+ Ke4 59. Rf6 Rxa7 0-1

[Event "Asian Zonal 3.3 Women 2019"]
[Site "Ulaanbaatar"]
[Date "2019.04.14"]
[Round "8.1"]
[White "Nguyen, Thi Thanh An"]
[Black "Munguntuul, Batkhuyag"]
[Result "0-1"]
[ECO "D45"]
[WhiteElo "2264"]
[BlackElo "2415"]
[Annotator "ChessBase"]
[PlyCount "28"]
[EventDate "2019.04.07"]
[EventType "swiss"]
[EventRounds "9"]
[EventCountry "MGL"]
[SourceTitle "playchess.com"]
[Source "ChessBase"]
[SourceQuality "1"]
[TimeControl "40/5400+30:1800+30"]

1. d4 {[%emt 0:00:00]} d5 {[%emt 0:00:00]} 2. c4 {[%emt 0:00:00]} e6 {[%emt 0:00:00]} 3. Nf3 {[%emt 0:00:05]} Nf6 {[%emt 0:00:00]} 4. Qc2 {[%emt 0:00:16]} c6 {[%emt 0:08:53]} 5. e3 {[%emt 0:00:31]} Nbd7 {[%emt 0:00:24]} 6. Nc3 {[%emt 0:00:09]} Bd6 {[%emt 0:00:34]} 7. b3 {[%emt 0:00:14]} O-O {[%emt 0:00:26]} 8. Be2 {[%emt 0:00:07]} b6 {[%emt 0:00:25]} 9. O-O {[%emt 0:00:10]} Bb7 {[%emt 0:00:29]} 10. Bb2 {[%emt 0:00:14]} Qe7 {[%emt 0:00:05]} 11. Rad1 {[%emt 0:00:09]} Rad8 {[%emt 0:00:07]} 12. Rfe1 {[%emt 0:00:38]} Rfe8 {[%emt 0:00:09]} 13. g3 {[%emt 0:00:27]} c5 {[%emt 0:09:49]} 14. cxd5 {[%emt 0:00:42]} exd5 {[%emt 0:00:34]} 0-1

[Event "Asian Zonal 3.3 Women 2019"]
[Site "Ulaanbaatar"]
[Date "2019.04.14"]
[Round "8.3"]
[White "Sihite, Chelsie Monica Igne"]
[Black "Aulia, Medina Warda"]
[Result "*"]
[ECO "C00"]
[WhiteElo "2227"]
[BlackElo "2362"]
[Annotator "NA"]
[PlyCount "69"]
[EventDate "2019.04.07"]
[EventType "swiss"]
[EventRounds "9"]
[EventCountry "MGL"]
[SourceTitle "playchess.com"]
[Source "ChessBase"]
[SourceQuality "1"]
[TimeControl "40/5400+30:1800+30"]

{[%evp 8,66,10,27,15,-8,6,0,0,0,0,-25,-26,-42,-20,-41,-18,-36,-12,-32,-33,-22,39,-25,30,32767,32767,32767,32767,32767,32767,32767,32767,41,58,32767,135,152,32767,32767,32767,186,32767,232,32767,32767,32767,32767,32767,32767,32767,32767,32767,32767,32767,32767,268,262,32767,32767,265]} 1. Nf3 {[%emt 0:00:00]} Nf6 {[%emt 0:01:43]} 2. g3 {[%emt 0:00:00]} b6 {[%emt 0:00:08]} 3. Bg2 {[%emt 0:00:15]} Bb7 {[%emt 0:00:05]} 4. d3 {[%emt 0:00:51]} e6 {[%emt 0:00:24]} 5. e4 {[%emt 0:00:32]} d5 {[%emt 0:00:17]} 6. e5 {[%emt 0:00:54]} Nfd7 {[%emt 0:00:13]} 7. O-O {[%emt 0:00:43]} Be7 {[%emt 0:00:43]} 8. Re1 {[%emt 0:01:20]} c5 {[%emt 0:00:09]} 9. Nbd2 {[%emt 0:01:40]} Nc6 {[%emt 0:00:06]} 10. Nf1 {[%emt 0:01:14]} Qc7 {[%emt 0:00:32]} 11. Qe2 {[%emt 0:01:06]} Rc8 {[%emt 0:00:35] C00: French: Unusual White 2nd moves} 12. Bf4 {[%emt 0:01:02]} O-O {[%emt 0:03:57]} 13. h4 {[%emt 0:02:22]} b5 {[%emt 0:00:59]} 14. h5 {[%emt 0:02:17]} Rfe8 {[%emt 0:00:26]} 15. N1h2 {[%emt 0:04:17] [#]} (15. h6 $14) 15... a5 $146 {[%emt 0:03:13]} ({Predecessor:} 15... h6 $15 16. Qd2 Nd4 17. Nxd4 cxd4 18. Re2 Qb6 19. Nf3 Rc7 {1-0 (45) Giuliani,S (2630)-Turkov,V (2533) ICCF email 2009}) 16. Ng4 {[%emt 0:04:48]} Qd8 {[%emt 1:24:30]} 17. Rad1 {[%emt 0:02:46]} a4 {[%emt 0:01:47]} 18. Qd2 {[%emt 0:06:07]} c4 {[%emt 0:02:44]} 19. dxc4 {[%emt 0:05:43]} bxc4 {[%emt 0:00:12]} 20. h6 {[%emt 1:02:03]} g6 {[%emt 0:01:54]} 21. Bg5 {[%emt 0:00:57]} c3 {[%emt 0:02:15]} (21... Nd4 $14 22. Nf6+ Bxf6 23. exf6 Nxf3+ 24. Bxf3 Qb6) 22. bxc3 {[%emt 0:02:29]} Ncb8 {[%emt 0:13:48]} 23. Rb1 {[%emt 0:04:26]} Ba6 {[%emt 0:00:15]} 24. Rb4 {[%emt 0:04:36]} Bc4 {[%emt 0:01:27]} 25. Rb7 {[%emt 0:01:17]} Rc7 {[%emt 0:04:46]} 26. Bxe7 {[%emt 0:00:30]} Rxe7 {[%emt 0:00:00]} 27. Rxc7 {[%emt 0:00:00]} Qxc7 {[%emt 0:00:00]} 28. Qg5 {[%emt 0:00:30]} Qd8 {[%emt 0:00:00]} 29. Rb1 {[%emt 0:00:00]} Qf8 {[%emt 0:00:00]} 30. a3 {[%emt 0:01:00]} Re8 {[%emt 0:01:00]} 31. Rb7 {[%emt 0:00:30]} Be2 {[%emt 0:00:30]} 32. Nf6+ {[%emt 0:00:00]} Nxf6 {[%emt 0:00:00]} 33. Qxf6 {[%emt 0:01:00]} Bxf3 $18 {[%emt 0:00:00]} 34. Bxf3 {[%emt 0:01:30]} Na6 {[%emt 0:00:00]} 35. g4 {[%emt 0:00:00]} *

[Event "Asian Zonal 3.3 Women 2019"]
[Site "Ulaanbaatar"]
[Date "2019.04.14"]
[Round "8.4"]
[White "Munkhzul, Turmunkh"]
[Black "Vo, Thi Kim Phung"]
[Result "0-1"]
[ECO "C04"]
[WhiteElo "2348"]
[BlackElo "2349"]
[Annotator "NA"]
[PlyCount "50"]
[EventDate "2019.04.07"]
[EventType "swiss"]
[EventRounds "9"]
[EventCountry "MGL"]
[SourceTitle "playchess.com"]
[Source "ChessBase"]
[SourceQuality "1"]
[TimeControl "40/5400+30:1800+30"]

{[%evp 8,50,27,43,45,45,30,37,21,1,0,-14,0,-29,-28,32767,32767,32767,32767,32767,6,-305,32767,32767,32767,-99,-100,-62,-63,32767,32767,32767,32767,32767,32767,32767,32767,32767,32767,32767,32767,32767,32767,-229,-72]} 1. e4 {[%emt 0:01:05]} e6 {[%emt 0:00:00]} 2. d4 {[%emt 0:01:06]} d5 {[%emt 0:00:24]} 3. Nd2 {[%emt 0:00:30]} Nc6 {[%emt 0:01:12]} 4. Ngf3 {[%emt 0:00:38]} Nf6 {[%emt 0:01:15]} 5. e5 {[%emt 0:00:28]} Nd7 {[%emt 0:00:15]} 6. Be2 {[%emt 0:00:41]} f6 {[%emt 0:01:21]} 7. exf6 $1 {[%emt 0:08:09]} Qxf6 {[%emt 0:03:42] LiveBook: 327 Games} 8. c3 {[%emt 0:00:21]} Bd6 {[%emt 0:00:53]} 9. O-O {[%emt 0:05:09]} O-O {[%emt 0:00:24] C04: French Tarrasch: 3...Nc6} 10. Re1 {[%emt 0:03:08]} (10. Nb3 h6 11. Be3 b6 12. g3 Bb7 13. Nh4 Ne7 14. f4 Nf5 15. Ng2 c5 16. Bf2 Rac8 17. g4 {1-0 (40) Dervishi,E (2531)-Drasko,M (2521) Bratto 2006}) 10... e5 {[%emt 0:03:56]} 11. dxe5 {[%emt 0:00:25]} Ndxe5 {[%emt 0:00:07]} 12. Nb3 $146 {[%emt 0:14:31]} ({Predecessor:} 12. Nf1 Bg4 13. Qxd5+ Kh8 14. Ng3 Nxf3+ 15. gxf3 Bxf3 16. Bxf3 Qxf3 17. Qxf3 Rxf3 {0-1 (79) Oltian,V (1799)-Westerberg,J (2322) Maribor 2012}) 12... Ng4 {[%emt 0:10:33]} 13. Qxd5+ {[%emt 0:00:45]} Be6 {[%emt 0:03:27]} 14. Qd1 $2 {[%emt 0:00:20]} (14. Qg5 $11 {and White is okay.}) 14... Nxh2 {[%emt 0:04:44]} 15. Be3 {[%emt 0:02:54]} Rad8 {[%emt 0:10:27]} 16. Nbd2 {[%emt 0:00:52]} Nxf3+ {[%emt 0:02:13]} 17. Bxf3 {[%emt 0:00:09]} Qh4 {[%emt 0:01:51]} 18. g3 {[%emt 0:00:17]} Bxg3 {[%emt 0:05:46]} 19. fxg3 {[%emt 0:00:25]} Qxg3+ {[%emt 0:00:06]} 20. Bg2 {[%emt 0:00:29]} Ne5 {[%emt 0:04:09]} 21. Ne4 {[%emt 0:05:04]} Qg6 {[%emt 0:03:58]} 22. Nd2 {[%emt 0:00:57]} Rxd2 {[%emt 0:02:39]} 23. Bxd2 {[%emt 0:00:14]} Bd5 {[%emt 0:00:19]} 24. Bg5 {[%emt 0:00:54]} Nf3+ {[%emt 0:07:19]} 25. Bxf3 {[%emt 0:00:59]} Qxg5+ $17 {[%emt 0:00:14]} (25... Bxf3 $19 {and Black stays clearly on top.} 26. Qb3+ Kh8) 0-1

[Event "Asian Zonal 3.3 Women 2019"]
[Site "Ulaanbaatar"]
[Date "2019.04.14"]
[Round "8.4"]
[White "Sihite, Chelsie Monica Igne"]
[Black "Aulia, Medina Warda"]
[Result "0-1"]
[ECO "C04"]
[WhiteElo "2227"]
[BlackElo "2362"]
[Annotator "NA"]
[PlyCount "50"]
[EventDate "2019.04.07"]
[EventType "swiss"]
[EventRounds "9"]
[EventCountry "MGL"]
[SourceTitle "playchess.com"]
[Source "ChessBase"]
[SourceQuality "1"]
[TimeControl "40/5400+30:1800+30"]

{[%evp 8,66,10,27,15,-8,6,0,0,0,0,-25,-26,-42,-20,-41,-18,-36,-12,-32,-33,-22,39,-25,30,32767,32767,32767,32767,32767,32767,32767,32767,41,58,32767,135,152,32767,32767,32767,186,32767,232,32767,32767,32767,32767,32767,32767,32767,32767,32767,32767,32767,32767,268,262,32767,32767,265]} 1. e4 {[%emt 0:01:05]} e6 {[%emt 0:00:00]} 2. d4 {[%emt 0:01:06]} d5 {[%emt 0:00:24]} 3. Nd2 {[%emt 0:00:30]} Nc6 {[%emt 0:01:12]} 4. Ngf3 {[%emt 0:00:38]} Nf6 {[%emt 0:01:15]} 5. e5 {[%emt 0:00:28]} Nd7 {[%emt 0:00:15]} 6. Be2 {[%emt 0:00:41]} f6 {[%emt 0:01:21]} 7. exf6 {[%emt 0:08:09]} Qxf6 {[%emt 0:03:42]} 8. c3 {[%emt 0:00:21]} Bd6 {[%emt 0:00:53]} 9. O-O {[%emt 0:05:09]} O-O {[%emt 0:00:24]} 10. Re1 {[%emt 0:03:08]} e5 {[%emt 0:03:56]} 11. dxe5 {[%emt 0:00:25]} Ndxe5 {[%emt 0:00:07]} 12. Nb3 {[%emt 0:14:31]} Ng4 {[%emt 0:10:33]} 13. Qxd5+ {[%emt 0:00:45]} Be6 {[%emt 0:03:27]} 14. Qd1 {[%emt 0:00:20]} Nxh2 {[%emt 0:04:44]} 15. Be3 {[%emt 0:02:54]} Rad8 {[%emt 0:10:27]} 16. Nbd2 {[%emt 0:00:52]} Nxf3+ {[%emt 0:02:13]} 17. Bxf3 {[%emt 0:00:09]} Qh4 {[%emt 0:01:51]} 18. g3 {[%emt 0:00:17]} Bxg3 {[%emt 0:05:46]} 19. fxg3 {[%emt 0:00:25]} Qxg3+ {[%emt 0:00:06]} 20. Bg2 {[%emt 0:00:29]} Ne5 {[%emt 0:04:09]} 21. Ne4 {[%emt 0:05:04]} Qg6 {[%emt 0:03:58]} 22. Nd2 {[%emt 0:00:57]} Rxd2 {[%emt 0:02:39]} 23. Bxd2 {[%emt 0:00:14]} Bd5 {[%emt 0:00:19]} 24. Bg5 {[%emt 0:00:54]} Nf3+ {[%emt 0:07:19]} 25. Bxf3 {[%emt 0:00:59]} Qxg5+ {[%emt 0:00:14]} 0-1

[Event "Asian Zonal 3.3 Women 2019"]
[Site "Ulaanbaatar"]
[Date "2019.04.14"]
[Round "8.5"]
[White "Nomindalai Tumurbaatar"]
[Black "Pham, Le Thao Nguyen"]
[Result "0-1"]
[ECO "A47"]
[WhiteElo "1958"]
[BlackElo "2383"]
[Annotator "ChessBase"]
[PlyCount "124"]
[EventDate "2019.04.07"]
[EventType "swiss"]
[EventRounds "9"]
[EventCountry "MGL"]
[SourceTitle "playchess.com"]
[Source "ChessBase"]
[SourceQuality "1"]
[TimeControl "40/5400+30:1800+30"]

1. d4 {[%emt 0:00:00]} Nf6 {[%emt 0:00:00]} 2. Bf4 {[%emt 0:00:05]} e6 {[%emt 0:00:29]} 3. e3 {[%emt 0:00:28]} b6 {[%emt 0:00:25]} 4. Nd2 {[%emt 0:00:51]} Bb7 {[%emt 0:00:25]} 5. Ngf3 {[%emt 0:01:13]} Nh5 {[%emt 0:02:36]} 6. Bg5 {[%emt 0:00:17]} Be7 {[%emt 0:00:34]} 7. Bxe7 {[%emt 0:00:35]} Qxe7 {[%emt 0:00:11]} 8. c3 {[%emt 0:02:20]} Nf6 {[%emt 0:02:35]} 9. a4 {[%emt 0:05:53]} a5 {[%emt 0:02:37]} 10. Bd3 {[%emt 0:01:09]} d6 {[%emt 0:02:50]} 11. O-O {[%emt 0:07:03]} O-O {[%emt 0:01:55]} 12. e4 {[%emt 0:05:48]} e5 {[%emt 0:02:30]} 13. d5 {[%emt 0:02:40]} Nh5 {[%emt 0:02:14]} 14. Re1 {[%emt 0:02:05]} Nf4 {[%emt 0:02:55]} 15. Bf1 {[%emt 0:00:38]} Bc8 {[%emt 0:06:33]} 16. Nc4 {[%emt 0:11:57]} Na6 {[%emt 0:04:41]} 17. Ne3 {[%emt 0:02:42]} Nc5 {[%emt 0:02:23]} 18. Nf5 {[%emt 0:05:04]} Qf6 {[%emt 0:02:03]} 19. Ng3 {[%emt 0:04:56]} Bd7 {[%emt 0:04:51]} 20. Re3 {[%emt 0:05:49]} h5 {[%emt 0:04:06]} 21. Bb5 {[%emt 0:13:55]} Bxb5 {[%emt 0:10:00]} 22. axb5 {[%emt 0:00:07]} h4 {[%emt 0:00:33]} 23. Nf5 {[%emt 0:00:56]} h3 {[%emt 0:00:31]} 24. N3h4 {[%emt 0:00:24]} hxg2 {[%emt 0:02:22]} 25. Qg4 {[%emt 0:04:41]} g6 {[%emt 0:06:19]} 26. c4 {[%emt 0:04:28]} Rfd8 {[%emt 0:02:44]} 27. Nxg2 {[%emt 0:02:06]} Nxe4 {[%emt 0:02:52]} 28. Nh6+ {[%emt 0:00:31]} Kg7 {[%emt 0:00:47]} 29. Nxf4 {[%emt 0:05:52]} Qxf4 {[%emt 0:02:42]} 30. Qxf4 {[%emt 0:00:25]} exf4 {[%emt 0:00:06]} 31. Rxe4 {[%emt 0:00:04]} Kxh6 {[%emt 0:00:10]} 32. Re7 {[%emt 0:02:03]} Rac8 {[%emt 0:00:35]} 33. Rxf7 {[%emt 0:00:34]} Rf8 {[%emt 0:00:05]} 34. Re7 {[%emt 0:02:06]} f3 {[%emt 0:01:21]} 35. Rae1 {[%emt 0:01:07]} Rf5 {[%emt 0:00:35]} 36. h4 {[%emt 0:01:12]} g5 {[%emt 0:06:48]} 37. R1e6+ {[%emt 0:01:23]} Kh5 {[%emt 0:00:06]} 38. Rh7+ {[%emt 0:01:01]} Kg4 {[%emt 0:00:05]} 39. Re4+ {[%emt 0:03:42]} Rf4 {[%emt 0:00:34]} 40. Rxf4+ {[%emt 0:00:00]} gxf4 {[%emt 0:00:00]} 41. h5 {[%emt 0:11:45]} Re8 {[%emt 0:07:36]} 42. h6 {[%emt 0:00:30]} Kg5 {[%emt 0:05:16]} 43. Rxc7 {[%emt 0:00:31]} Re1+ {[%emt 0:00:43]} 44. Kh2 {[%emt 0:00:05]} Kxh6 {[%emt 0:00:08]} 45. Rc6 {[%emt 0:01:18]} Rf1 {[%emt 0:00:36]} 46. Rxd6+ {[%emt 0:00:41]} Kg5 {[%emt 0:00:07]} 47. Rxb6 {[%emt 0:01:23]} Rxf2+ {[%emt 0:00:04]} 48. Kg1 {[%emt 0:00:12]} Rxb2 {[%emt 0:00:21]} 49. Rb8 {[%emt 0:01:05]} a4 {[%emt 0:03:56]} 50. d6 {[%emt 0:00:18]} Rd2 {[%emt 0:00:48]} 51. c5 {[%emt 0:00:47]} a3 {[%emt 0:00:23]} 52. Ra8 {[%emt 0:00:09]} a2 {[%emt 0:39:54]} 53. d7 {[%emt 0:01:19]} Kg4 {[%emt 0:05:00]} 54. Rxa2 {[%emt 0:01:50]} Rxd7 {[%emt 0:00:03]} 55. Kf2 {[%emt 0:00:31]} Rh7 {[%emt 0:00:18]} 56. Kg1 {[%emt 0:03:56]} Kg3 {[%emt 0:00:41]} 57. c6 {[%emt 0:00:18]} Re7 {[%emt 0:01:03]} 58. Kf1 {[%emt 0:01:27]} Rh7 {[%emt 0:01:24]} 59. Kg1 {[%emt 0:00:15]} Rh5 {[%emt 0:02:03]} 60. Rb2 {[%emt 0:03:26]} Rc5 {[%emt 0:00:23]} 61. Rb1 {[%emt 0:00:17]} f2+ {[%emt 0:00:28]} 62. Kf1 {[%emt 0:00:04]} f3 {[%emt 0:00:08]} 0-1

[Event "Asian Zonal 3.3 Women 2019"]
[Site "Ulaanbaatar"]
[Date "2019.04.14"]
[Round "8.5"]
[White "Ulziikhishigjargal, Ochirkhuyag"]
[Black "Hoang, Thi Bao Tram"]
[Result "*"]
[ECO "A47"]
[WhiteElo "1843"]
[BlackElo "2298"]
[Annotator "NA"]
[PlyCount "51"]
[EventDate "2019.04.07"]
[EventType "swiss"]
[EventRounds "9"]
[EventCountry "MGL"]
[SourceTitle "playchess.com"]
[Source "ChessBase"]
[SourceQuality "1"]
[TimeControl "40/5400+30:1800+30"]

{[%evp 8,49,2,0,16,2,8,6,17,7,10,10,8,14,13,15,30,32767,32767,32767,32767,32767,32767,-13,-22,32767,-12,-33,29,-43,-19,32767,32767,32767,32767,32767,32767,32767,32767,32767,32767,32767,32767,-93]} 1. d4 {[%emt 0:00:00]} Nf6 {[%emt 0:00:00]} 2. Bf4 {[%emt 0:00:05]} e6 {[%emt 0:00:29]} 3. e3 {[%emt 0:00:28]} b6 {[%emt 0:00:25]} 4. Nd2 {[%emt 0:00:51]} Bb7 {[%emt 0:00:25]} 5. Ngf3 {[%emt 0:01:13]} Nh5 {[%emt 0:02:36]} 6. Bg5 {[%emt 0:00:17] A47: 1 d4 Nf6 2 Nf3 b6: Torre, London and Colle Systems} Be7 {[%emt 0:00:34]} 7. Bxe7 {[%emt 0:00:35]} Qxe7 {[%emt 0:00:11] LiveBook: 18 Games} 8. c3 {[%emt 1:30:31]} (8. e4 O-O 9. a4 a6 10. Ra3 d6 11. Bc4 Nf6 12. Bd3 e5 13. O-O Nbd7 {1-0 (61) Firouzja,A (2499)-Bruzon Batista,L (2653) Bandar e Anzali 2017}) 8... Nf6 {[%emt 0:02:35]} 9. a4 $146 {[%emt 1:28:41]} ({Predecessor:} 9. Bd3 d5 10. Qe2 Ne4 11. Bb5+ c6 12. Bd3 Nxd2 13. Nxd2 c5 14. dxc5 bxc5 {0-1 (98) Sriram,J (2426)-Laxman,R (2387) Lucknow 2016}) 9... a5 {[%emt 0:02:37]} 10. Bd3 {[%emt 0:01:09]} d6 {[%emt 0:02:50]} 11. O-O {[%emt 0:07:03]} O-O {[%emt 0:01:55]} 12. e4 {[%emt 0:05:48]} e5 {[%emt 0:02:30]} 13. d5 {[%emt 0:02:40]} Nh5 {[%emt 0:02:14]} 14. Re1 {[%emt 0:02:05]} Nf4 {[%emt 0:02:55]} 15. Bf1 {[%emt 0:00:38]} Bc8 {[%emt 0:06:33]} 16. Nc4 {[%emt 1:06:55]} Na6 {[%emt 0:04:41]} 17. Ne3 {[%emt 0:02:42]} Nc5 {[%emt 0:02:23]} 18. Nf5 {[%emt 0:05:04]} ({White should play} 18. Qc2 $14) 18... Qf6 {[%emt 0:02:03]} 19. Ng3 {[%emt 0:04:56]} Bd7 {[%emt 0:04:51]} 20. Re3 {[%emt 0:05:49]} h5 {[%emt 0:04:06]} 21. Bb5 {[%emt 0:13:55]} Bxb5 {[%emt 0:10:00]} 22. axb5 {[%emt 0:00:07]} h4 {[%emt 0:00:33]} 23. Nf5 {[%emt 0:00:56]} h3 {[%emt 0:00:31]} 24. N3h4 {[%emt 0:00:24]} hxg2 {[%emt 0:02:22]} 25. Qg4 $17 {[%emt 0:04:41]} g6 {[%emt 0:06:19]} 26. c4 {[%emt 0:04:28]} *